bitfinex/quotes_BTCUSD_20260310
["timestamp","ask_amount","ask_price","bid_price","bid_amount"]
[1773183184396,0.01583781,69779.0,69766.0,0.07166774]
[1773183184714,0.01583781,69779.0,69767.0,0.00144]
[1773183185069,0.01583781,69779.0,69768.0,0.00144]
[1773183185469,0.01583781,69777.0,69765.0,0.00144]
[1773183185712,0.01583781,69777.0,69765.0,0.0002952]
[1773183188079,0.01583781,69777.0,69765.0,0.07196423]
[1773183188565,0.00144,69778.0,69766.0,0.01644258]
[1773183188672,0.00219,69789.0,69768.0,0.01644258]
[1773183188878,0.00219,69789.0,69779.0,0.01644258]
[1773183189078,0.00075,69789.0,69779.0,0.01644258]
[1773183189931,0.00022001,69787.0,69779.0,0.01644258]
[1773183190144,0.00022001,69787.0,69780.0,0.07165376]
[1773183191770,0.00022001,69787.0,69780.0,0.07309376]
[1773183195906,0.00022001,69787.0,69780.0,0.07165376]
[1773183199777,0.01565106,69786.0,69770.0,0.0002]
[1773183199991,0.01565106,69786.0,69772.0,0.07182611]
[1773183200152,0.01565106,69786.0,69773.0,0.00144]
[1773183200361,0.01565106,69797.0,69776.0,0.05480288]
[1773183200539,0.07163529,69799.0,69772.0,0.0001646]
[1773183200540,0.01565106,69789.0,69772.0,0.0001646]
[1773183200745,0.01565106,69789.0,69764.0,0.21417669]
[1773183200746,0.01565106,69781.0,69765.0,0.07199926]
[1773183200948,0.01565106,69779.0,69765.0,0.00188278]
[1773183201156,0.01565106,69779.0,69758.0,0.0003306]
[1773183201157,0.01565106,69778.0,69758.0,0.0003306]
[1773183201354,0.01576317,69778.0,69758.0,0.0720069]
[1773183201554,0.01576317,69778.0,69759.0,0.00164]
[1773183201782,0.01576317,69778.0,69759.0,0.0733153]
[1773183202391,0.07165684,69777.0,69759.0,0.0718753]
[1773183202627,0.01565106,69776.0,69759.0,0.0733153]
[1773183203063,0.01565106,69776.0,69753.0,0.0002]
[1773183203064,0.01565106,69769.0,69753.0,0.0002]
[1773183203196,0.05480288,69770.0,69753.0,0.0002]
[1773183203197,0.01565106,69767.0,69753.0,0.0002]
[1773183203404,0.01565106,69767.0,69749.0,0.07188473]
[1773183203405,0.01565106,69762.0,69745.0,0.0002]
[1773183203811,0.01565106,69762.0,69745.0,0.07188918]
[1773183204033,0.01709106,69761.0,69745.0,0.07188918]
[1773183204435,0.01565106,69759.0,69745.0,0.0002]
[1773183204767,0.01565106,69757.0,69742.0,0.0002]
[1773183205869,0.01577676,69757.0,69742.0,0.0002]
[1773183206020,0.0001871,69760.0,69747.0,0.05480288]
[1773183206213,0.01565106,69772.0,69748.0,0.01579742]
[1773183206412,0.00144,69776.0,69761.0,0.01435742]
[1773183206634,0.00167,69775.0,69762.0,0.08602967]
[1773183207190,0.00144,69779.0,69765.0,0.05480288]
[1773183207363,0.0001871,69781.0,69766.0,0.01579742]
[1773183207568,0.00144,69780.0,69766.0,0.01579742]
[1773183207927,0.0001871,69781.0,69766.0,0.01579742]
[1773183208124,0.0016271,69781.0,69766.0,0.01579742]
[1773183208535,0.0001871,69781.0,69768.0,0.01435742]
[1773183208727,0.0016271,69781.0,69768.0,0.01435742]
[1773183208935,0.00144,69781.0,69768.0,0.01435742]
[1773183209118,0.00144,69780.0,69768.0,0.01435742]
[1773183209834,0.00155216,69780.0,69768.0,0.01435742]
[1773183210898,0.00155216,69780.0,69769.0,0.07166506]
[1773183212527,0.00155216,69780.0,69769.0,0.07266506]
[1773183215245,0.00155216,69780.0,69769.0,0.07166506]
[1773183215646,0.00155216,69780.0,69769.0,0.07266506]
[1773183215856,0.00155216,69780.0,69769.0,0.07166506]
[1773183216155,0.00155216,69780.0,69769.0,0.07266506]
[1773183216656,0.00155216,69780.0,69770.0,0.01435742]
[1773183218361,0.00011216,69780.0,69771.0,0.07166301]
[1773183220062,0.00011216,69780.0,69770.0,0.0860214]
[1773183220387,0.00011216,69780.0,69771.0,0.001]
[1773183220609,0.00011216,69780.0,69768.0,0.0002]
[1773183220812,0.00011216,69780.0,69741.0,0.07189348]
[1773183220813,0.05480288,69760.0,69741.0,0.07189348]
[1773183220973,0.01709106,69759.0,69743.0,0.01435742]
[1773183221204,0.01709106,69759.0,69743.0,0.01579742]
[1773183221515,0.00144,69759.0,69755.0,0.0002]
[1773183222118,0.01709106,69759.0,69743.0,0.00144]
[1773183222321,0.00144,69758.0,69744.0,0.01435742]
[1773183222740,0.0731169,69758.0,69744.0,0.08604736]
[1773183222927,0.0731169,69758.0,69744.0,0.07168994]
[1773183223150,0.0731169,69758.0,69745.0,0.01435742]
[1773183223557,0.00144,69757.0,69745.0,0.01435742]
[1773183223838,0.01565106,69756.0,69743.0,0.00037421]
[1773183224678,0.01565106,69754.0,69743.0,0.00037421]
[1773183225114,0.01565106,69754.0,69745.0,0.001]
[1773183225307,0.01565106,69754.0,69743.0,0.00037421]
[1773183225923,0.05934593,69749.0,69707.0,0.28503302]
[1773183226134,0.05934593,69749.0,69701.0,0.0002]
[1773183226135,0.01565106,69739.0,69705.0,0.01465172]
[1773183226361,0.01565106,69729.0,69705.0,0.0002943]
[1773183226561,0.01565106,69727.0,69705.0,0.0002943]
[1773183226711,0.01565106,69725.0,69705.0,0.0002943]
[1773183227871,0.01565106,69725.0,69705.0,0.00039604]
[1773183228646,0.01665106,69725.0,69705.0,0.00039604]
[1773183228860,0.01694273,69723.0,69705.0,0.00039604]
[1773183229185,0.01694273,69721.0,69705.0,0.00039604]
[1773183229339,0.01694273,69721.0,69702.0,0.0002]
[1773183229714,0.01694273,69721.0,69701.0,0.0002]
[1773183229924,0.01694273,69721.0,69701.0,0.00030733]
[1773183230338,0.01694273,69721.0,69697.0,0.0002]
[1773183230507,0.01694273,69721.0,69697.0,0.00028598]
[1773183230907,0.01565121,69718.0,69697.0,0.00028598]
[1773183231138,0.01565121,69718.0,69697.0,0.00041538]
[1773183232373,0.01565121,69718.0,69697.0,0.07215414]
[1773183232614,0.01665121,69718.0,69697.0,0.08903532]
[1773183232997,0.07171851,69717.0,69697.0,0.08903532]
[1773183233203,0.01709121,69716.0,69697.0,0.08903532]
[1773183234745,0.01709121,69716.0,69698.0,0.01688118]
[1773183235091,0.07172057,69715.0,69698.0,0.08874836]
[1773183235319,0.01565121,69714.0,69698.0,0.08874836]
[1773183239756,0.07172263,69713.0,69698.0,0.08874836]
[1773183240046,0.08737384,69713.0,69698.0,0.08874836]
[1773183240931,0.00144,69712.0,69699.0,0.01688118]
[1773183241330,0.00144,69712.0,69699.0,0.01701058]
[1773183241771,0.07316434,69712.0,69700.0,0.07173601]
[1773183241894,0.07316434,69712.0,69700.0,0.08861719]
[1773183242314,0.07316434,69712.0,69701.0,0.01688118]
[1773183243130,0.00144,69712.0,69701.0,0.01701058]
[1773183243898,0.08736252,69724.0,69703.0,0.01688118]
[1773183244097,0.07216061,69725.0,69705.0,0.01688118]
[1773183244255,0.07216051,69725.0,69705.0,0.01688118]
[1773183244698,0.00144,69724.0,69705.0,0.01688118]
[1773183245333,0.00144,69724.0,69705.0,0.01701058]
[1773183246274,0.07171234,69723.0,69707.0,0.01688118]
[1773183247424,0.07171234,69723.0,69707.0,0.01701058]
[1773183248280,0.07171234,69723.0,69708.0,0.07172777]
[1773183248413,0.07171234,69723.0,69709.0,0.01688118]
[1773183249215,0.07171234,69723.0,69709.0,0.01701058]
[1773183250126,0.01565121,69722.0,69700.0,0.0717359]
[1773183250330,0.01565121,69722.0,69698.0,0.0002]
[1773183250331,0.01565121,69720.0,69698.0,0.0002]
[1773183251654,0.01665121,69720.0,69698.0,0.0002]
[1773183251852,0.01565121,69720.0,69698.0,0.0002]
[1773183252243,0.01565121,69718.0,69698.0,0.0002]
[1773183252451,0.01565121,69716.0,69698.0,0.0002]
[1773183252866,0.21498678,69720.0,69703.0,0.01688118]
[1773183253063,0.00144,69716.0,69703.0,0.01688118]
[1773183253594,0.00144,69718.0,69703.0,0.01688118]
[1773183253911,0.14371032,69718.0,69703.0,0.01688118]
[1773183254118,0.00144,69718.0,69703.0,0.01688118]
[1773183254320,0.25679668,69717.0,69703.0,0.01688118]
[1773183254467,0.14227032,69716.0,69705.0,0.01688118]
[1773183254668,0.11452636,69717.0,69705.0,0.01688118]
[1773183254669,0.14227032,69715.0,69705.0,0.01688118]
[1773183254864,0.14227032,69716.0,69705.0,0.01688118]
[1773183255094,0.14227032,69717.0,69705.0,0.01688118]
[1773183255302,0.14227032,69716.0,69705.0,0.01688118]
[1773183255514,0.14227032,69715.0,69705.0,0.01688118]
[1773183255717,0.14227032,69714.0,69705.0,0.01688118]
[1773183255919,0.14227032,69713.0,69705.0,0.01688118]
[1773183256119,0.11452636,69717.0,69705.0,0.01688118]
[1773183256120,0.14227032,69712.0,69705.0,0.01688118]
[1773183256320,0.14227032,69711.0,69705.0,0.01688118]
[1773183256540,0.14227032,69710.0,69707.0,0.01688118]
[1773183256872,0.14227032,69709.0,69707.0,0.01688118]
[1773183257048,0.00144,69718.0,69707.0,0.01688118]
[1773183257869,0.07171672,69719.0,69707.0,0.01688118]
[1773183258067,0.00144,69718.0,69707.0,0.01688118]
[1773183258395,0.07171672,69719.0,69707.0,0.01688118]
[1773183258601,0.00144,69717.0,69709.0,0.01688118]
[1773183259846,0.07171672,69719.0,69709.0,0.01688118]
[1773183260059,0.00144,69718.0,69709.0,0.01688118]
[1773183260278,0.00144,69718.0,69709.0,0.08860764]
[1773183260481,0.00144,69717.0,69709.0,0.08860764]
[1773183260907,0.00144,69723.0,69710.0,0.01608637]
[1773183262180,0.00144,69723.0,69712.0,0.01608637]
[1773183262687,0.00022001,69727.0,69712.0,0.01608637]
[1773183262849,0.00728001,69732.0,69712.0,0.01608637]
[1773183263208,0.00584001,69732.0,69712.0,0.01608637]
[1773183263631,0.00022001,69734.0,69712.0,0.01608637]
[1773183264238,0.00022001,69734.0,69714.0,0.01608637]
[1773183264461,0.00022001,69734.0,69716.0,0.01608637]
[1773183266242,0.00022001,69734.0,69717.0,0.07171851]
[1773183266444,0.00022001,69734.0,69718.0,0.01608637]
[1773183267651,0.00032728,69734.0,69718.0,0.01608637]
[1773183269053,0.00032728,69734.0,69720.0,0.01608637]
[1773183269396,0.00032728,69734.0,69721.0,0.00144]
[1773183269801,0.00032728,69734.0,69721.0,0.01752637]
[1773183276206,0.00032728,69734.0,69722.0,0.08779974]
[1773183279167,0.00144,69736.0,69722.0,0.08779974]
[1773183279377,0.00144,69736.0,69722.0,0.08790701]
[1773183281098,0.07313918,69736.0,69722.0,0.08790701]
[1773183281300,0.01705196,69736.0,69722.0,0.08790701]
[1773183283110,0.01727197,69736.0,69722.0,0.08790701]
[1773183285453,0.08041112,69736.0,69722.0,0.08790701]
[1773183290036,0.00166001,69736.0,69722.0,0.07182064]
[1773183290228,0.00022001,69739.0,69727.0,0.0165658]
[1773183290465,0.00022001,69739.0,69729.0,0.0165658]
[1773183292146,0.00022001,69739.0,69730.0,0.07170514]
[1773183296318,0.00022001,69739.0,69729.0,0.07170514]
[1773183300816,0.01641201,69737.0,69710.0,0.28520182]
[1773183300970,0.01652423,69737.0,69720.0,0.05485327]
[1773183301297,0.00144,69736.0,69721.0,0.0165658]
[1773183301468,0.00011222,69737.0,69728.0,0.0165658]
[1773183302464,0.00011222,69737.0,69729.0,0.07170617]
[1773183306125,0.01641201,69736.0,69711.0,0.0165658]
[1773183306453,0.01641201,69736.0,69710.0,0.12657899]
[1773183306454,0.01641201,69736.0,69713.0,0.0165658]
[1773183307079,0.00011222,69737.0,69713.0,0.0165658]
[1773183307080,0.00144,69735.0,69713.0,0.0165658]
[1773183307264,0.01641201,69734.0,69713.0,0.0165658]
[1773183308286,0.07170206,69733.0,69714.0,0.0717216]
[1773183308482,0.01641201,69732.0,69714.0,0.0717216]
[1773183308690,0.01641201,69732.0,69715.0,0.0165658]
[1773183309381,0.01641201,69732.0,69713.0,0.07192212]
[1773183309768,0.01641201,69732.0,69713.0,0.08848792]
[1773183310546,0.01641201,69730.0,69713.0,0.08848792]
[1773183310780,0.01785201,69729.0,69713.0,0.08848792]
[1773183315258,0.0717072,69728.0,69713.0,0.08848792]
[1773183316303,0.01641201,69727.0,69713.0,0.08848792]
[1773183318217,0.01641201,69727.0,69714.0,0.0165658]
[1773183320245,0.01641201,69727.0,69715.0,0.07172057]
[1773183321598,0.08812034,69727.0,69715.0,0.07172057]
[1773183323277,0.01641201,69727.0,69715.0,0.07172057]
[1773183324462,0.08812092,69727.0,69715.0,0.07172057]
[1773183325377,0.01641201,69727.0,69715.0,0.07172057]
[1773183325638,0.00022001,69739.0,69717.0,0.05485327]
[1773183325822,0.00022001,69739.0,69718.0,0.0158196]
[1773183325973,0.00022001,69739.0,69720.0,0.0158196]
[1773183326177,0.00022001,69739.0,69722.0,0.0158196]
[1773183327147,0.00022001,69737.0,69722.0,0.0158196]
[1773183327515,0.00022001,69737.0,69724.0,0.0158196]
[1773183327739,0.00022001,69737.0,69726.0,0.0158196]
[1773183330161,0.00022001,69737.0,69728.0,0.0158196]
[1773183332583,0.00022001,69737.0,69729.0,0.07170617]
[1773183334995,0.00022001,69737.0,69729.0,0.08752577]
[1773183335192,0.00022001,69737.0,69730.0,0.0158196]
[1773183336924,0.00022001,69739.0,69732.0,0.0158196]
[1773183337123,0.00022001,69743.0,69732.0,0.0172596]
[1773183338302,0.00022001,69743.0,69733.0,0.00144]
[1773183338920,0.00022001,69743.0,69734.0,0.07170103]
[1773183341088,0.00022001,69743.0,69734.0,0.08752063]
[1773183344382,0.00022001,69743.0,69735.0,0.0158196]
[1773183344860,0.00045001,69750.0,69734.0,0.07170103]
[1773183344861,0.07166461,69770.0,69741.0,0.0158196]
[1773183345206,0.01003158,69769.0,69734.0,0.07170103]
[1773183345399,0.00998747,69759.0,69735.0,0.0172596]
[1773183345600,0.01142747,69759.0,69735.0,0.0158196]
[1773183345843,0.01142747,69759.0,69736.0,0.00144]
[1773183346032,0.01180168,69759.0,69736.0,0.00144]
[1773183347267,0.07167636,69758.0,69737.0,0.07169795]
[1773183347462,0.01172467,69757.0,69737.0,0.07169795]
[1773183349545,0.07167842,69756.0,69737.0,0.07169795]
[1773183349745,0.01162579,69755.0,69737.0,0.07169795]
[1773183350298,0.01162579,69755.0,69733.0,0.00144]
[1773183350437,0.01162579,69755.0,69733.0,0.0175104]
[1773183350636,0.01162579,69755.0,69733.0,0.0160704]
[1773183351010,0.01162579,69755.0,69733.0,0.0175104]
[1773183352142,0.01162579,69755.0,69734.0,0.07170103]
[1773183352143,0.07168047,69754.0,69734.0,0.07170103]
[1773183352347,0.07168047,69754.0,69735.0,0.0160704]
[1773183352348,0.01296979,69753.0,69735.0,0.0160704]
[1773183352545,0.01296979,69753.0,69734.0,0.07170103]
[1773183352546,0.00144,69753.0,69741.0,0.0160704]
[1773183353177,0.00144,69753.0,69739.0,0.00144]
[1773183353818,0.00244,69753.0,69739.0,0.00144]
[1773183354037,0.00144,69753.0,69739.0,0.00144]
[1773183354624,0.07168253,69752.0,69739.0,0.07313532]
[1773183359437,0.07168253,69752.0,69738.0,0.0160704]
[1773183359631,0.01115084,69751.0,69739.0,0.00144]
[1773183360393,0.01115084,69751.0,69736.0,0.07169897]
[1773183360596,0.01115084,69751.0,69737.0,0.00144]
[1773183361114,0.01115084,69751.0,69732.0,0.00562]
[1773183361314,0.07268253,69752.0,69729.0,2.83700455]
[1773183361315,0.01110403,69739.0,69729.0,2.83700455]
[1773183361440,0.01105734,69737.0,69729.0,2.68678783]
[1773183362593,0.07313692,69738.0,69729.0,2.68690005]
[1773183362799,0.07313692,69738.0,69730.0,0.0002]
[1773183362954,0.001,69737.0,69730.0,0.0002]
[1773183363357,0.002,69737.0,69730.0,0.0002]
[1773183363588,0.07269851,69737.0,69730.0,0.0002]
[1773183364141,0.07169851,69737.0,69730.0,0.0002]
[1773183365467,0.07313692,69738.0,69730.0,0.0002]
[1773183365619,0.001,69737.0,69730.0,0.0002]
[1773183367445,0.07269811,69737.0,69730.0,0.0002]
[1773183372260,0.07191812,69737.0,69730.0,0.0002]
[1773183376279,0.07291812,69737.0,69730.0,0.0002]
[1773183381083,0.07191812,69737.0,69730.0,0.0002]
[1773183381819,0.07291812,69737.0,69730.0,0.0002]
[1773183384803,0.02202864,69736.0,69723.0,0.0002]
[1773183385701,0.02202864,69734.0,69723.0,0.0002]
[1773183387481,0.02302864,69734.0,69723.0,0.0002]
[1773183387816,0.02202864,69732.0,69723.0,0.0002]
[1773183388022,0.00144,69731.0,69723.0,0.0002]
[1773183389276,0.00244,69731.0,69723.0,0.0002]
[1773183389936,0.07170514,69730.0,69723.0,0.0002]
[1773183390644,0.02224865,69737.0,69723.0,0.0007217]
[1773183390841,0.07313897,69736.0,69724.0,0.0216149]
[1773183391070,0.001,69731.0,69724.0,0.0216149]
[1773183391288,0.00144,69735.0,69724.0,0.0216149]
[1773183391499,0.002,69730.0,69724.0,0.0216149]
[1773183391897,0.001,69730.0,69724.0,0.0216149]
[1773183392264,0.001,69730.0,69723.0,0.0007217]
[1773183392465,0.07198347,69730.0,69721.0,0.07610429]
[1773183392677,0.07170517,69730.0,69721.0,0.07610429]
[1773183394082,0.0717034,69732.0,69721.0,0.07610429]
[1773183394757,0.0717034,69732.0,69721.0,0.16943351]
[1773183396101,0.0717034,69732.0,69722.0,0.0216149]
[1773183401376,0.07170206,69733.0,69722.0,0.09332781]
[1773183401582,0.07170206,69733.0,69723.0,0.0216149]
[1773183404606,0.07170206,69733.0,69723.0,0.02146374]
[1773183406341,0.0997,69732.0,69723.0,0.02146374]
[1773183407497,0.0716958,69740.0,69723.0,0.02146374]
[1773183407840,0.12655324,69740.0,69723.0,0.02146374]
[1773183408134,0.15705916,69740.0,69723.0,0.02146374]
[1773183408491,0.12655324,69740.0,69723.0,0.02146374]
[1773183408676,0.03050592,69732.0,69722.0,0.0002]
[1773183409660,0.07170412,69731.0,69722.0,0.0002]
[1773183410674,0.07170412,69731.0,69723.0,0.00144]
[1773183410976,0.07170412,69731.0,69723.0,0.00128883]
[1773183411202,0.07170412,69731.0,69722.0,0.0002]
[1773183411413,0.07170412,69731.0,69724.0,0.00144]
[1773183412160,0.07170412,69731.0,69722.0,0.0002]
[1773183412290,0.07170412,69731.0,69724.0,0.00144]
[1773183412931,0.07285092,69731.0,69724.0,0.00144]
[1773183413105,0.07185092,69731.0,69724.0,0.00144]
[1773183413298,0.07285092,69731.0,69724.0,0.00144]
[1773183416294,0.0011468,69731.0,69724.0,0.00144]
[1773183417183,0.00022001,69753.0,69726.0,0.02991277]
[1773183417184,0.07169831,69737.0,69726.0,0.02991277]
[1773183417383,0.001,69731.0,69726.0,0.02991277]
[1773183417582,0.2151163,69737.0,69726.0,0.02991277]
[1773183417818,0.14341799,69737.0,69726.0,0.02991277]
[1773183418401,0.21511643,69737.0,69726.0,0.10162107]
[1773183418783,0.21511643,69737.0,69727.0,0.02991277]
[1773183419818,0.14341799,69736.0,69724.0,0.00144]
[1773183420194,0.07169844,69737.0,69724.0,0.00144]
[1773183421382,0.07169844,69737.0,69724.0,0.00128886]
[1773183423404,0.10340395,69737.0,69724.0,0.00128886]
[1773183424192,0.10362396,69737.0,69724.0,0.00128886]
[1773183424709,0.10362396,69737.0,69724.0,0.00113775]
[1773183425112,0.10366688,69737.0,69724.0,0.00098661]
[1773183431927,0.07196137,69737.0,69724.0,0.00098661]
[1773183432127,0.10366688,69737.0,69724.0,0.00098661]
[1773183432327,0.10366688,69737.0,69724.0,0.00198661]
[1773183432780,0.10366688,69737.0,69724.0,0.00098661]
[1773183432983,0.10366688,69737.0,69724.0,0.00198661]
[1773183433313,0.03170551,69736.0,69725.0,0.00144]
[1773183434835,0.0717,69735.0,69725.0,0.00144]
[1773183437109,0.03314551,69734.0,69720.0,0.00075]
[1773183437309,0.03170551,69729.0,69720.0,0.00075]
[1773183437905,0.03170551,69729.0,69721.0,0.00144]
[1773183438321,0.03170551,69729.0,69720.0,0.00219]
[1773183439046,0.0717072,69728.0,69720.0,0.00219]
[1773183439253,0.03170551,69728.0,69720.0,0.00075]
[1773183439434,0.03170551,69728.0,69720.0,0.00219]
[1773183440058,0.03170551,69728.0,69720.0,0.00075]
[1773183440376,0.03170551,69728.0,69720.0,0.00219]
[1773183441943,0.10169331,69727.0,69720.0,0.00219]
[1773183444345,0.10169331,69727.0,69720.0,0.00239]
[1773183447177,0.07170823,69727.0,69716.0,0.0002]
[1773183447344,0.07170823,69727.0,69710.0,0.0002]
[1773183447345,0.05485744,69726.0,69710.0,0.0002]
[1773183447689,0.02998508,69719.0,69710.0,0.0002]
[1773183448009,0.02998508,69718.0,69710.0,0.0002]
[1773183449035,0.02998508,69716.0,69710.0,0.0002]
[1773183450335,0.02998508,69716.0,69710.0,5.29032062]
[1773183450735,0.02998508,69716.0,69710.0,5.29052062]
[1773183450928,0.07172057,69715.0,69710.0,2.61606641]
[1773183451127,0.02998508,69714.0,69710.0,2.45803546]
[1773183451327,0.02998508,69712.0,69710.0,2.12820619]
[1773183451556,0.02998508,69712.0,69702.0,0.0002]
[1773183451957,0.02998508,69712.0,69700.0,0.00043]
[1773183452202,0.02998508,69709.0,69703.0,0.0002]
[1773183452411,0.02998508,69709.0,69700.0,0.00043]
[1773183452982,0.07172777,69708.0,69700.0,0.00043]
[1773183453185,0.02998508,69707.0,69700.0,0.00043]
[1773183453619,0.02998508,69705.0,69700.0,0.00043]
[1773183455139,0.02998508,69703.0,69700.0,0.00043]
[1773183457227,0.02998508,69701.0,69700.0,0.00043]
[1773183458856,0.03198508,69701.0,69700.0,0.00043]
[1773183459056,0.002,69701.0,69700.0,0.00043]
[1773183459229,0.07373498,69701.0,69700.0,0.00043]
[1773183459434,0.10372006,69701.0,69700.0,0.00043]
[1773183460059,0.10172006,69701.0,69700.0,0.00043]
[1773183460453,0.10372006,69701.0,69700.0,0.00043]
[1773183460707,0.10272006,69701.0,69700.0,0.00043]
[1773183460959,0.07273498,69701.0,69700.0,0.00043]
[1773183461180,0.001,69701.0,69700.0,0.00043]
[1773183461394,0.07273498,69701.0,69700.0,0.00043]
[1773183461719,0.10272006,69701.0,69700.0,0.00043]
[1773183462106,0.10372006,69701.0,69700.0,0.00043]
[1773183463069,0.10272006,69701.0,69700.0,0.00043]
[1773183463409,0.10372006,69701.0,69700.0,0.00043]
[1773183464464,0.10272006,69701.0,69700.0,0.00043]
[1773183464874,0.07172169,69714.0,69700.0,0.00043]
[1773183465118,0.07172555,69712.0,69701.0,0.02993075]
[1773183466468,0.07194556,69712.0,69701.0,0.02993075]
[1773183467828,0.07194556,69712.0,69701.0,0.10166556]
[1773183468249,0.07194556,69712.0,69701.0,0.02993075]
[1773183469182,0.1169067,69712.0,69700.0,0.00043]
[1773183469359,0.1169067,69712.0,69701.0,1.63424363]
[1773183469542,0.1169067,69712.0,69701.0,0.9]
[1773183471900,0.1169067,69712.0,69701.0,0.90101]
[1773183472211,0.07172263,69713.0,69702.0,0.04372268]
[1773183472438,0.07172263,69713.0,69702.0,1.74970001]
[1773183472656,0.07172263,69713.0,69702.0,1.67796631]
[1773183473431,0.07172263,69713.0,69702.0,1.67845291]
[1773183473432,0.00022001,69712.0,69702.0,1.67845291]
[1773183474047,6.972e-05,69714.0,69703.0,0.04372268]
[1773183474246,0.322848,69731.0,69702.0,1.70646397]
[1773183474247,0.07171234,69724.0,69705.0,0.04372268]
[1773183474466,0.07171234,69724.0,69711.0,0.04372268]
[1773183474664,0.07171234,69724.0,69710.0,0.054902]
[1773183474665,0.04257332,69720.0,69708.0,0.00144]
[1773183475016,0.04257332,69718.0,69706.0,1.63424363]
[1773183475573,0.04257332,69718.0,69706.0,1.41873179]
[1773183476370,0.04257332,69716.0,69706.0,1.41873179]
[1773183477804,0.04357332,69716.0,69706.0,1.41873179]
[1773183478324,0.04257332,69716.0,69706.0,1.41873179]
[1773183478479,0.04257332,69714.0,69706.0,1.41873179]
[1773183478701,0.07172057,69715.0,69706.0,1.41873179]
[1773183478702,0.04257332,69712.0,69706.0,1.41873179]
[1773183479951,0.04257332,69712.0,69706.0,0.75034816]
[1773183480453,0.04257332,69710.0,69706.0,0.75034816]
[1773183482566,0.11430002,69710.0,69706.0,0.75034816]
[1773183482938,0.04357332,69710.0,69706.0,0.75034816]
[1773183483383,0.04257332,69710.0,69706.0,0.75034816]
[1773183483594,0.07172469,69711.0,69706.0,0.75034816]
[1773183484010,0.07316285,69713.0,69706.0,0.75034816]
[1773183484463,0.07172383,69712.0,69706.0,0.75034816]
[1773183484820,0.07172383,69712.0,69706.0,0.75019703]
[1773183486990,0.07172383,69712.0,69706.0,0.0004866]
[1773183487577,0.07194384,69712.0,69706.0,0.0004866]
[1773183488145,0.00022001,69712.0,69707.0,0.74971043]
[1773183488364,0.00022001,69712.0,69706.0,0.0004866]
[1773183488581,0.00022001,69712.0,69707.0,0.74971043]
[1773183488980,0.00144,69714.0,69707.0,0.74971043]
[1773183489239,0.00144,69714.0,69707.0,0.78073203]
[1773183489454,0.00144,69714.0,69707.0,0.73700935]
[1773183489652,0.00144,69714.0,69707.0,0.73749595]
[1773183490193,0.0731617,69714.0,69707.0,0.73749595]
[1773183490609,0.0717217,69714.0,69707.0,0.73749595]
[1773183492222,0.0717217,69714.0,69707.0,0.73734494]
[1773183494662,0.0717217,69714.0,69707.0,0.73719394]
[1773183495090,0.07194171,69714.0,69707.0,0.73719394]
[1773183496640,0.00022001,69714.0,69707.0,0.73719394]
[1773183498243,0.07171761,69718.0,69707.0,0.73719394]
[1773183498244,0.07171362,69722.0,69708.0,0.04372268]
[1773183498446,0.07171362,69722.0,69711.0,0.04372268]
[1773183498653,0.07171343,69722.0,69711.0,0.04406228]
[1773183500142,0.07337422,69723.0,69711.0,0.03439468]
[1773183500338,0.07337422,69723.0,69712.0,0.73670734]
[1773183500782,0.07337422,69723.0,69712.0,0.73704694]
[1773183502191,0.07337422,69723.0,69712.0,0.0003396]
[1773183502889,0.00166001,69723.0,69712.0,0.07206293]
[1773183503093,0.07170812,69728.0,69712.0,0.07206293]
[1773183503094,0.00166001,69730.0,69714.0,0.0444732]
[1773183503330,0.07336544,69730.0,69714.0,0.0444732]
[1773183503725,0.07336544,69730.0,69714.0,0.0448128]
[1773183504126,0.07170617,69729.0,69716.0,0.0444732]
[1773183504444,0.00022001,69723.0,69716.0,0.0444732]
[1773183504847,0.00022001,69723.0,69718.0,0.0444732]
[1773183505842,0.00022001,69723.0,69718.0,0.0446658]
[1773183507653,0.00022001,69723.0,69719.0,0.07171646]
[1773183507989,0.00022001,69723.0,69719.0,0.11618966]
[1773183508402,3.866e-05,69723.0,69720.0,0.73670734]
[1773183508899,3.866e-05,69723.0,69720.0,0.73689994]
[1773183509395,3.866e-05,69723.0,69720.0,0.62051563]
[1773183509535,3.866e-05,69723.0,69720.0,0.62151563]
[1773183510357,0.04358382,69728.0,69720.0,0.62151563]
[1773183510644,0.11529129,69728.0,69720.0,0.62151563]
[1773183510845,0.11529129,69728.0,69720.0,0.62051563]
[1773183511563,0.00022001,69723.0,69720.0,0.62051563]
[1773183513972,0.11529129,69728.0,69720.0,0.62051563]
[1773183514781,0.00018138,69722.0,69720.0,0.62051563]
[1773183515924,0.00018138,69722.0,69720.0,0.62151563]
[1773183516953,0.00018138,69722.0,69720.0,0.0011926]
[1773183517918,0.00040139,69722.0,69720.0,0.0011926]
[1773183519136,0.00040139,69722.0,69721.0,0.62032303]
[1773183519754,0.00040139,69722.0,69721.0,0.62051563]
[1773183520551,0.00040139,69722.0,69721.0,0.62151563]
[1773183526344,0.00022007,69722.0,69721.0,0.62151563]
[1773183529422,0.00022001,69722.0,69721.0,0.62151563]
[1773183529604,0.00022001,69722.0,69721.0,0.62051563]
[1773183529777,0.00022001,69722.0,69721.0,0.62151563]
[1773183531217,0.00144,69728.0,69721.0,0.62151563]
[1773183532109,0.00144,69728.0,69721.0,0.0011926]
[1773183532576,0.00144,69728.0,69721.0,0.0001926]
[1773183532929,0.00125861,69728.0,69721.0,0.0001926]
[1773183533531,0.00125861,69728.0,69722.0,0.62032303]
[1773183533912,0.00125861,69728.0,69722.0,0.62059423]
[1773183534211,0.00562,69732.0,69722.0,0.62059423]
[1773183534212,0.00022001,69735.0,69723.0,0.04294766]
[1773183534472,0.00144,69734.0,69723.0,0.04294766]
[1773183535881,0.00144,69734.0,69723.0,0.11465932]
[1773183536262,0.00144,69734.0,69724.0,0.04294766]
[1773183536991,0.00144,69734.0,69724.0,0.11480303]
[1773183538284,0.07314103,69734.0,69724.0,0.0001446]
[1773183538518,0.07314103,69734.0,69720.0,0.0002]
[1773183538519,0.04078312,69733.0,69725.0,0.25334645]
[1773183538827,0.04078312,69733.0,69722.0,0.25334645]
[1773183539124,0.04078312,69731.0,69722.0,0.25334645]
[1773183540494,0.04060172,69731.0,69722.0,0.25334645]
[1773183543391,0.04078312,69730.0,69722.0,0.25334645]
[1773183544774,0.07314103,69734.0,69723.0,0.04294766]
[1773183544775,0.00144,69734.0,69723.0,0.04294766]
[1773183544946,0.07191912,69736.0,69723.0,0.04438766]
[1773183545145,0.07335918,69736.0,69723.0,0.04438766]
[1773183545450,0.07191918,69736.0,69724.0,0.07171131]
[1773183545677,0.00166001,69736.0,69725.0,0.04294766]
[1773183546512,0.07335929,69736.0,69725.0,0.04294766]
[1773183546736,0.04078312,69735.0,69726.0,0.25334645]
[1773183546935,0.04078312,69735.0,69723.0,0.00144]
[1773183547193,0.07335929,69736.0,69724.0,0.25334645]